bitfinex/quotes_ETHUSD_20240714
["timestamp","ask_amount","ask_price","bid_price","bid_amount"]
[1720969782389,0.2497717,3196.1,3195.4,3.0]
[1720969782779,0.06073365,3196.0,3195.4,3.0]
[1720969784218,0.06073365,3196.0,3194.3,2.50438]
[1720969784219,2.4369,3195.9,3194.7,5.56519236]
[1720969784425,2.68666337,3195.8,3194.7,5.56519236]
[1720969784794,4.71306369,3195.8,3194.7,5.56519236]
[1720969785196,2.74747269,3195.8,3194.7,5.56519236]
[1720969786028,4.71306369,3195.8,3194.7,5.56519236]
[1720969786324,2.4369,3195.7,3194.7,5.56519236]
[1720969786532,0.27474727,3195.6,3194.7,5.56519236]
[1720969786712,0.33524318,3195.6,3194.7,5.56519236]
[1720969789125,2.3939,3195.5,3194.7,5.56519236]
[1720969789491,0.06046165,3195.4,3194.7,5.56519236]
[1720969791734,0.06046165,3195.4,3194.4,0.1148461]
[1720969791735,2.3939,3195.3,3194.4,0.1148461]
[1720969791941,0.24543617,3195.2,3194.4,0.1148461]
[1720969792838,0.06051067,3195.1,3194.4,0.1148461]
[1720969793644,2.88531944,3195.0,3194.4,0.1148461]
[1720969794025,2.94577329,3195.0,3194.4,0.1148461]
[1720969797409,2.94577329,3195.0,3194.4,2.6192161]
[1720969797605,2.94577329,3195.0,3194.5,0.81844085]
[1720969797843,0.55187329,3195.0,3194.5,3.32272085]
[1720969800526,0.55187329,3195.0,3194.5,5.82695085]
[1720969800728,0.55187329,3195.0,3194.8,2.50405]
[1720969800948,0.49141944,3195.0,3194.8,2.50405]
[1720969801151,0.49141944,3195.0,3194.8,3.054455]
[1720969802043,0.49141944,3195.0,3194.8,3.11704782]
[1720969802246,0.49141944,3195.0,3194.8,3.054455]
[1720969802433,0.49141944,3195.0,3194.9,2.50399]
[1720969803731,0.49141944,3195.0,3194.8,0.550405]
[1720969803938,0.49141944,3195.0,3194.6,3.0]
[1720969803939,0.5505339,3195.0,3194.6,2.50419]
[1720969804137,0.49141944,3195.0,3194.9,2.50399]
[1720969804776,0.49141944,3195.0,3194.7,2.50407]
[1720969804978,0.49141944,3195.0,3194.8,2.50406]
[1720969806577,0.49141944,3195.0,3194.8,3.004885]
[1720969806780,0.49141944,3195.0,3194.8,5.508875]
[1720969807279,0.49141944,3195.0,3194.8,3.004815]
[1720969808651,0.49141944,3195.0,3194.6,2.50418]
[1720969808862,0.49141944,3195.0,3194.7,3.0]
[1720969809051,0.49141944,3195.0,3194.7,5.50413]
[1720969809260,0.49141944,3195.0,3194.8,2.50403]
[1720969809976,0.49141944,3195.0,3194.7,3.0]
[1720969810167,0.49141944,3195.0,3194.8,2.50406]
[1720969811382,2.91411944,3195.0,3194.4,0.1148461]
[1720969811543,2.91411944,3195.0,3194.4,3.1148461]
[1720969811996,2.91411944,3195.0,3194.4,5.6192261]
[1720969812274,2.91411944,3195.0,3194.4,3.1148461]
[1720969812602,2.91411944,3195.0,3193.2,5.56519236]
[1720969812603,2.4227,3194.9,3193.2,5.56519236]
[1720969812741,2.4227,3194.4,3192.8,0.00353256]
[1720969812938,4.93828285,3194.3,3192.8,0.00353256]
[1720969813139,2.4227,3194.3,3192.8,2.50909256]
[1720969813380,0.73882829,3194.2,3192.8,2.50909256]
[1720969813753,0.73882829,3194.2,3192.8,0.00353256]
[1720969814078,2.4227,3194.1,3192.8,0.00353256]
[1720969816244,2.74926107,3194.1,3192.8,0.00353256]
[1720969819762,0.05841485,3194.0,3192.8,0.00353256]
[1720969819962,0.28076759,3193.9,3192.8,0.00353256]
[1720969820191,0.33900911,3193.9,3192.8,0.00353256]
[1720969820357,0.33900911,3193.9,3192.8,2.57173328]
[1720969820566,0.49500911,3193.9,3192.8,2.50910256]
[1720969822770,0.21424152,3193.9,3193.0,2.50545]
[1720969822971,0.21424152,3193.9,3193.1,2.50534]
[1720969823205,0.21424152,3193.9,3192.8,0.00353256]
[1720969823406,0.156,3193.9,3193.0,2.5054]
[1720969823572,0.05787191,3193.8,3193.1,2.50539]
[1720969824290,0.05787191,3193.8,3192.9,2.5055]
[1720969824680,0.05787191,3193.8,3192.9,2.50548]
[1720969824882,0.05787191,3193.8,3192.9,2.75638126]
[1720969825809,0.05787191,3193.8,3192.9,0.25090126]
[1720969825979,2.4227,3193.7,3192.8,0.00353256]
[1720969826181,2.4227,3193.7,3192.8,5.50915256]
[1720969828081,2.4227,3193.7,3192.9,2.50555]
[1720969828281,0.0583074,3193.6,3192.9,2.50555]
[1720969829588,0.49160066,3193.5,3192.9,2.50555]
[1720969829785,0.49160066,3193.5,3192.8,3.00353256]
[1720969829978,0.05819367,3193.4,3192.8,3.00353256]
[1720969830395,0.05819367,3193.4,3192.9,2.50555]
[1720969832088,0.05819367,3193.4,3192.8,3.00353256]
[1720969832089,0.09034498,3193.4,3192.8,0.00353256]
[1720969832273,2.3736,3193.3,3192.8,0.00353256]
[1720969832479,0.09011473,3193.2,3192.8,0.00353256]
[1720969832684,2.66915456,3193.3,3192.8,0.00353256]
[1720969832882,0.08958301,3193.1,3192.8,0.00353256]
[1720969833082,2.66915456,3193.3,3192.8,0.00353256]
[1720969833397,0.08959073,3193.0,3192.8,0.00353256]
[1720969833604,2.66915456,3193.3,3192.8,0.00353256]
[1720969833915,0.26691546,3193.2,3192.8,0.00353256]
[1720969834111,0.35662992,3193.2,3192.8,0.00353256]
[1720969834919,0.08971446,3193.2,3192.8,0.00353256]
[1720969835125,2.3736,3193.3,3192.8,0.00353256]
[1720969835420,0.0896627,3193.1,3192.8,0.00353256]
[1720969835617,0.08971858,3193.2,3192.8,0.00353256]
[1720969835918,2.3736,3193.3,3192.8,0.00353256]
[1720969836122,0.0897301,3193.1,3192.8,0.00353256]
[1720969836448,2.3736,3193.3,3192.8,0.00353256]
[1720969836591,0.08967421,3193.0,3192.8,2.50910256]
[1720969836793,0.08967421,3193.0,3192.8,3.01059182]
[1720969837119,0.08964811,3192.9,3192.8,3.01059182]
[1720969837336,0.49160066,3193.5,3192.8,5.51616182]
[1720969837487,0.49160066,3193.5,3193.0,2.50547]
[1720969838628,0.49160066,3193.5,3192.8,5.51616182]
[1720969838828,0.77812073,3193.5,3192.8,2.50910256]
[1720969841113,0.49160066,3193.5,3193.0,2.50546]
[1720969842227,0.49160066,3193.5,3193.1,0.06262605]
[1720969842418,0.49160066,3193.5,3193.4,2.50516]
[1720969844355,0.49160066,3193.5,3193.2,2.50526]
[1720969845420,0.49160066,3193.5,3193.3,2.50523]
[1720969845629,0.09053696,3193.4,3193.3,2.50523]
[1720969846649,0.09053696,3193.4,3193.3,3.006289]
[1720969850944,0.49160066,3193.5,3193.3,3.006289]
[1720969851555,0.49160066,3193.5,3193.3,5.511459]
[1720969851761,0.49160066,3193.5,3193.4,2.50516]
[1720969851960,0.5821885,3193.5,3193.4,2.50516]
[1720969852163,0.5821885,3193.5,3193.4,3.0562989]
[1720969853540,0.5821885,3193.5,3193.4,5.62407914]
[1720969853740,0.49160066,3193.5,3193.4,5.62407914]
[1720969853924,0.49160066,3193.5,3193.4,8.62407914]
[1720969856163,0.49160066,3193.5,3193.4,6.0562989]
[1720969856370,0.49160066,3193.5,3193.4,5.50516]
[1720969858837,0.58175516,3193.5,3193.4,5.50516]
[1720969859025,0.49160066,3193.5,3193.4,5.50516]
[1720969863150,0.49160066,3193.5,3193.2,2.50531]
[1720969863463,0.57975229,3193.5,3193.3,5.50523]
[1720969864137,0.57975229,3193.5,3193.3,3.0]
[1720969864340,0.57975229,3193.5,3193.2,3.0]
[1720969864554,0.57975229,3193.5,3193.2,5.50531]
[1720969865167,0.57975229,3193.5,3193.4,2.50516]
[1720969865374,0.57975229,3193.5,3193.4,5.50516]
[1720969867674,0.57975229,3193.5,3193.4,8.01032]
[1720969869297,0.57975229,3193.5,3193.4,10.51548]
[1720969869590,0.49160066,3193.5,3193.4,13.50018]
[1720969869757,0.49160066,3193.5,3193.4,14.9303045]
[1720969870592,0.46660066,3193.5,3193.4,14.9303045]
[1720969873448,0.46660066,3193.5,3193.4,14.3803045]
[1720969877302,0.46660066,3193.5,3193.4,9.4404445]
[1720969879077,0.46660066,3193.5,3193.4,13.8396045]
[1720969879587,0.46660066,3193.5,3193.4,14.3896045]
[1720969880498,0.46660066,3193.5,3193.4,11.3344445]
[1720969889403,0.46660066,3193.5,3193.4,5.50516]
[1720969889625,0.46660066,3193.5,3193.4,2.50516]
[1720969890083,0.55452007,3193.5,3193.4,2.50516]
[1720969891110,0.55452007,3193.5,3193.4,5.50516]
[1720969895429,0.55452007,3193.5,3193.4,3.0]
[1720969895727,0.55452007,3193.5,3193.2,3.0]
[1720969895922,0.55452007,3193.5,3193.2,5.50529]
[1720969897087,0.55452007,3193.5,3193.4,2.50516]
[1720969897292,0.55452007,3193.5,3193.4,5.50516]
[1720969897504,0.55452007,3193.5,3193.4,3.0]
[1720969898888,0.55452007,3193.5,3193.4,5.50516]
[1720969901997,0.46660066,3193.5,3193.4,5.50516]
[1720969902296,0.55301669,3193.5,3193.4,5.50516]
[1720969906424,0.55301669,3193.5,3193.4,6.29816]
[1720969907305,0.55301669,3193.5,3193.4,9.683652]
[1720969907906,0.46660066,3193.5,3193.4,9.683652]
[1720969909918,0.55283811,3193.5,3193.4,9.683652]
[1720969910244,0.55283811,3193.5,3193.4,7.178492]
[1720969911843,0.46660066,3193.5,3193.4,7.178492]
[1720969912145,0.55272891,3193.5,3193.4,7.178492]
[1720969912715,0.55272891,3193.5,3193.4,6.29816]
[1720969920435,0.55272891,3193.5,3193.4,13.98288]
[1720969920615,0.46660066,3193.5,3193.4,11.30848]
[1720969920950,0.46660066,3193.5,3193.4,8.80332]
[1720969921249,0.46660066,3193.5,3193.4,10.17609]
[1720969923721,0.55341503,3193.5,3193.4,10.17609]
[1720969924325,0.55341503,3193.5,3193.4,9.38309]
[1720969925437,0.46660066,3193.5,3193.4,9.38309]
[1720969925640,0.55341503,3193.5,3193.4,9.38309]
[1720969929126,0.46660066,3193.5,3193.4,9.38309]
[1720969929358,0.46660066,3193.5,3193.4,11.88825]
[1720969934646,0.46660066,3193.5,3193.4,9.38309]
[1720969935184,2.86970066,3193.5,3193.4,8.01032]
[1720969936143,2.95567259,3193.5,3193.4,8.01032]
[1720969937184,0.55257259,3193.5,3193.4,8.01032]
[1720969939972,0.55257259,3193.5,3193.4,3.0]
[1720969939973,2.95567259,3193.5,3193.4,3.0]
[1720969940304,2.95567259,3193.5,3193.3,2.50522]
[1720969940609,2.95567259,3193.5,3193.4,3.0]
[1720969940774,2.86970066,3193.5,3193.4,3.0]
[1720969941658,2.86970066,3193.5,3193.0,2.50887274]
[1720969941659,2.86970066,3193.5,3193.2,2.50527]
[1720969941861,2.86970066,3193.5,3193.3,3.0]
[1720969942367,0.46660066,3193.5,3193.3,3.0]
[1720969943337,0.46660066,3193.5,3193.3,3.801052]
[1720969943511,0.08525683,3193.4,3193.3,6.306292]
[1720969943720,0.46660066,3193.5,3193.3,6.306292]
[1720969943920,0.08525683,3193.4,3193.3,6.306292]
[1720969945231,0.08525683,3193.4,3193.3,11.37939647]
[1720969945411,0.46660066,3193.5,3193.4,5.01032]
[1720969945606,0.46660066,3193.5,3193.4,9.5827082]
[1720969946803,0.46660066,3193.5,3193.4,15.6785052]
[1720969947009,0.46660066,3193.5,3193.4,11.6745052]
[1720969947209,0.54983429,3193.5,3193.4,11.6745052]
[1720969947720,0.54983429,3193.5,3193.4,12.0878682]
[1720969948234,0.46660066,3193.5,3193.4,12.0878682]
[1720969951073,0.46660066,3193.5,3193.4,9.5827082]
[1720969952308,0.46660066,3193.5,3193.4,10.3747082]
[1720969954569,0.46510032,3193.5,3193.4,10.3747082]
[1720969954856,0.46510032,3193.5,3193.4,16.3148682]
[1720969955853,0.46510032,3193.5,3193.4,13.3148682]
[1720969956826,0.46510032,3193.5,3193.4,16.3148682]
[1720969958953,2.4558,3194.5,3194.4,2.50438]
[1720969959113,2.4558,3194.5,3194.4,3.29638]
[1720969959753,2.94722168,3194.5,3194.4,3.29638]
[1720969961459,2.94722168,3194.5,3194.4,3.27138]
[1720969961985,0.49142168,3194.5,3194.4,8.28014]
[1720969962132,0.49142168,3194.5,3194.4,12.17075847]
[1720969964283,0.49142168,3194.5,3194.4,13.27875847]
[1720969965458,0.49142168,3194.5,3194.4,13.766154]
[1720969968167,2.409,3196.0,3195.7,2.5033]
[1720969968477,0.08099092,3195.9,3195.7,2.5033]
[1720969968673,2.409,3196.0,3195.7,2.5033]
[1720969968864,2.90025009,3196.0,3195.7,2.5033]
[1720969969260,0.49125009,3196.0,3195.9,5.0064]
[1720969969508,0.49125009,3196.0,3195.9,8.0064]
[1720969972609,0.32643613,3197.1,3197.0,5.00468]
[1720969973007,2.409,3197.3,3197.2,2.50218]
[1720969973482,0.4910337,3197.4,3197.3,2.50211]
[1720969973685,0.4910337,3197.4,3197.3,6.90422]
[1720969973874,0.4910337,3197.4,3197.3,9.90422]
[1720969974719,2.409,3197.7,3197.5,2.50191]
[1720969975015,2.6499,3197.7,3197.5,2.50191]
[1720969976122,2.6499,3197.7,3197.4,2.50202]
[1720969976475,0.4909639,3197.9,3197.3,7.40211]
[1720969976684,0.4909639,3197.9,3197.7,2.50177]
[1720969977701,0.4909639,3197.9,3197.3,7.40204]
[1720969977900,0.4909639,3197.9,3197.4,3.0]
[1720969977901,2.409,3197.8,3197.4,3.0]
[1720969978090,2.409,3197.8,3197.4,5.50203]
[1720969978291,2.409,3197.8,3197.5,2.50194]
[1720969978612,2.409,3197.8,3197.6,3.0]
[1720969979880,2.409,3197.8,3197.7,2.50179]
[1720969980402,0.4909639,3197.9,3197.7,2.50179]
[1720969981624,0.4909639,3197.9,3197.8,2.50171]
[1720969985197,0.4909639,3197.9,3197.6,3.0]
[1720969985415,0.4909639,3197.9,3197.6,5.50186]
[1720969986527,0.4909639,3197.9,3197.6,3.0]
[1720969986730,0.4909639,3197.9,3197.5,2.50194]
[1720969986890,0.4909639,3197.9,3197.6,3.0]
[1720969987304,0.4909639,3197.9,3197.4,5.50201]
[1720969987735,0.4909639,3197.9,3197.5,2.50193]
[1720969987915,0.4909639,3197.9,3197.6,3.0]
[1720969989319,0.4909639,3197.9,3197.6,5.50185]
[1720969989895,0.4909639,3197.9,3197.7,2.50178]
[1720969990094,0.4909639,3197.9,3197.8,3.0]
[1720969991032,0.4909639,3197.9,3197.7,3.0]
[1720969991222,0.4909639,3197.9,3197.7,5.50178]
[1720969992095,0.6469639,3197.9,3197.7,5.50178]
[1720969993129,0.6469639,3197.9,3197.7,3.0]
[1720969993297,0.6469639,3197.9,3197.6,5.50187]
[1720969993499,0.6469639,3197.9,3197.7,2.50178]
[1720969993711,0.6469639,3197.9,3197.8,3.0]
[1720969996836,0.6469639,3197.9,3197.8,10.453598]
[1720969998041,0.6469639,3197.9,3197.8,7.453598]
[1720969998419,0.6469639,3197.9,3197.8,10.453598]
[1720969998827,2.3655,3199.0,3197.8,7.951818]
[1720969999057,2.3655,3199.0,3198.5,2.50115]
[1720969999265,0.49079973,3198.9,3198.5,2.50115]
[1720970002360,0.49079973,3198.9,3198.6,2.50108]
[1720970002566,0.49079973,3198.9,3198.7,2.50099]
[1720970002929,2.3655,3199.0,3198.7,2.50099]
[1720970003186,0.49076945,3198.9,3198.7,2.50099]
[1720970003478,0.49076945,3198.9,3198.8,5.00186]
[1720970003679,0.49076945,3198.9,3198.8,5.502046]
[1720970004080,0.56220539,3198.9,3198.8,5.502046]
[1720970004786,0.56220539,3198.9,3198.6,2.50106]
[1720970004982,0.56220539,3198.9,3198.7,2.50101]
[1720970005295,0.49076945,3198.9,3198.7,2.50101]
[1720970006191,2.85626945,3198.9,3198.0,1.9]
[1720970006376,2.85626945,3198.9,3198.4,2.50122]
[1720970006581,0.07064717,3198.8,3198.4,2.50122]
[1720970006785,2.85626945,3198.9,3198.4,2.50122]
[1720970007869,3.1418964,3198.9,3198.0,4.40154]
[1720970008109,3.1418964,3198.9,3198.0,5.00303]
[1720970008297,3.1418964,3198.9,3198.0,2.50149]
[1720970010466,2.3334,3198.8,3197.6,1.9]
[1720970010672,2.3334,3198.8,3197.6,5.56519236]
[1720970010877,2.3334,3198.6,3197.6,5.56519236]
[1720970013506,2.3334,3198.6,3197.6,8.06703236]
[1720970013896,2.3334,3198.6,3197.7,0.06254142]
[1720970014093,2.3334,3198.6,3197.9,2.50162]
[1720970015032,2.82416945,3198.9,3198.4,2.50125]
[1720970015396,0.06819555,3198.8,3198.4,2.50125]
[1720970015596,2.82416945,3198.9,3198.4,2.50125]
[1720970016336,2.82416945,3198.9,3198.5,2.56366517]
[1720970016659,2.82416945,3198.9,3198.5,2.50114]
[1720970016999,0.49076945,3198.9,3198.6,2.50108]
[1720970017195,2.3334,3198.8,3198.4,0.250125]
[1720970017493,2.40151896,3198.8,3198.3,5.00258]
[1720970017919,2.40151896,3198.8,3198.3,2.50126]
[1720970019004,2.40151896,3198.8,3198.4,2.50123]
[1720970020080,0.06811896,3198.8,3198.4,2.50123]
[1720970020877,0.06811896,3198.8,3198.5,2.50115]
[1720970023070,2.3334,3198.7,3198.5,2.50115]
[1720970023477,2.3334,3198.7,3198.3,2.50126]
[1720970023478,0.06555989,3198.6,3198.3,2.50126]
[1720970023944,0.06555989,3198.6,3198.4,2.50124]
[1720970024965,0.06555989,3198.6,3198.4,5.00242]
[1720970025903,0.06555989,3198.6,3198.4,2.50118]
[1720970030399,0.06555989,3198.6,3198.4,3.001435]
[1720970031587,0.06514418,3198.5,3198.4,3.001435]
[1720970031999,1.64042575,3198.8,3198.5,2.50116]
[1720970032329,1.640764,3198.8,3198.5,2.50116]
[1720970032530,2.3885,3199.0,3198.5,2.50116]
[1720970032697,1.64081161,3198.8,3198.5,2.50116]
[1720970033491,1.64081161,3198.7,3198.5,2.50116]
[1720970034842,1.64093006,3198.7,3198.5,2.50116]
[1720970035007,0.06520357,3198.6,3198.4,2.50118]
[1720970037234,2.3885,3198.5,3198.0,5.50154]
[1720970037441,2.3885,3198.5,3198.0,2.50154]
[1720970037442,4.02948148,3198.5,3198.0,2.50154]
[1720970037935,0.0650833,3198.4,3198.1,2.50148]
[1720970039423,1.64134636,3198.6,3198.1,2.50148]
[1720970039631,0.0650276,3198.3,3198.2,2.50139]
[1720970039803,0.49080851,3198.4,3198.3,2.50132]
[1720970041545,0.49080851,3198.4,3198.3,5.00264]
[1720970042943,0.5558992,3198.4,3198.3,5.00264]
[1720970046428,0.5558992,3198.4,3198.3,2.50132]
[1720970046850,1.01914792,3198.4,3197.9,2.50158]
[1720970047070,1.01914792,3198.4,3197.7,2.50178]
[1720970047071,2.66103596,3198.4,3197.7,2.50178]
[1720970047228,1.64188804,3198.1,3197.6,8.36703636]
[1720970047427,1.64188804,3198.1,3197.7,2.50177]
[1720970047661,0.06488414,3198.0,3197.7,2.50177]
[1720970047822,0.06488414,3198.0,3197.7,3.58865264]
[1720970048282,0.06488414,3198.0,3197.9,2.50164]
[1720970048438,1.64208495,3198.3,3198.2,2.5014]
[1720970048635,2.13289346,3198.4,3198.2,2.50135]
[1720970049049,0.49080851,3198.4,3198.3,2.50132]
[1720970049658,0.49080851,3198.4,3198.0,1.9]
[1720970049864,0.49080851,3198.4,3198.1,2.5014]
[1720970050340,0.05883355,3198.3,3198.1,2.5014]
[1720970051466,2.4347,3198.3,3197.7,6.09036264]
[1720970051665,4.07682635,3198.3,3197.8,5.47665]
[1720970051970,0.05880077,3198.2,3198.1,2.50148]
[1720970052182,0.05880077,3198.2,3198.1,11.4266696]
[1720970052183,0.0541444,3198.2,3198.1,11.4266696]
[1720970052364,0.49080851,3198.4,3198.3,5.00264]
[1720970053946,0.5414411,3198.4,3198.3,8.00264]
[1720970054149,0.49080851,3198.4,3198.3,8.00264]
[1720970054445,0.54147694,3198.4,3198.3,8.992904]
[1720970054654,0.54147694,3198.4,3198.3,3.990264]
[1720970054848,0.49080851,3198.4,3198.3,3.0]
[1720970055054,0.54147768,3198.4,3198.3,3.0]
[1720970055448,0.54147768,3198.4,3198.2,2.50139]
[1720970056043,0.54147768,3198.4,3198.2,2.65739]
[1720970057283,0.54147768,3198.4,3198.2,0.156]
[1720970058329,0.49080851,3198.4,3198.2,0.156]
[1720970058645,0.05061198,3198.3,3198.2,0.156]
[1720970059154,0.05061198,3198.3,3198.2,2.6574]
[1720970059773,0.05061198,3198.3,3198.2,0.156]
[1720970060282,1.69278716,3198.3,3198.2,0.156]
[1720970060481,0.05061198,3198.3,3198.2,0.156]
[1720970060641,1.6938096,3198.3,3198.2,0.156]
[1720970060844,1.64319135,3198.3,3198.2,0.156]
[1720970061156,0.05061198,3198.3,3198.2,0.156]
[1720970061886,1.69380333,3198.3,3198.2,0.156]
[1720970063210,1.69382667,3198.3,3198.2,0.156]
[1720970063993,0.05061198,3198.3,3198.2,0.156]
[1720970064305,1.6431468,3198.3,3198.2,0.156]
[1720970064715,1.69375878,3198.3,3198.2,0.156]
[1720970067514,1.69362579,3198.3,3198.2,0.156]
[1720970068822,0.05061198,3198.3,3198.2,0.156]
[1720970073076,0.05061198,3198.3,3198.2,5.452797]
[1720970073388,0.05061198,3198.3,3198.2,7.4383]
[1720970073588,0.49080851,3198.4,3198.3,5.00264]
[1720970073904,0.54141422,3198.4,3198.3,5.00264]
[1720970074311,0.54141422,3198.4,3198.3,2.50132]
[1720970075489,0.54141422,3198.4,3198.2,0.156]
[1720970079846,0.75983726,3198.4,3198.2,0.156]
[1720970080120,2.3417,3198.3,3198.2,0.156]
[1720970080432,2.39225374,3198.3,3198.2,0.156]
[1720970082993,0.05055374,3198.3,3198.2,0.156]
[1720970083295,1.69329217,3198.3,3198.2,0.156]
[1720970083693,1.69324402,3198.3,3198.2,0.156]
[1720970084926,1.69324402,3198.3,3198.2,2.6574]
[1720970085608,0.05055374,3198.3,3198.2,2.6574]
[1720970087213,2.13344003,3198.4,3198.2,2.6574]
[1720970087609,0.05068351,3198.3,3198.2,2.6574]
[1720970088243,0.05068351,3198.3,3198.2,5.674696]
[1720970088442,0.05068351,3198.3,3198.2,13.443796]
[1720970088941,0.05068351,3198.3,3198.2,18.312745]
[1720970089111,0.49080851,3198.4,3198.3,5.00264]
[1720970101519,0.49080851,3198.4,3198.3,10.50396]
[1720970101725,0.49080851,3198.4,3198.3,12.0984556]
[1720970102121,0.49080851,3198.4,3198.3,9.5971356]
[1720970103151,0.53972737,3198.4,3198.3,9.5971356]
[1720970103858,0.53972737,3198.4,3198.3,2.50132]
[1720970104727,0.53972737,3198.4,3198.3,5.00264]
[1720970105581,0.53972737,3198.4,3198.3,2.50132]
[1720970110340,2.97582737,3198.4,3198.2,0.156]
[1720970110541,2.18143064,3198.4,3198.2,0.156]
[1720970110746,4.29594633,3198.3,3198.2,0.156]
[1720970110989,2.65424306,3198.3,3198.2,0.156]
[1720970111277,2.7030495,3198.3,3198.2,0.156]
[1720970112460,2.7030495,3198.3,3197.3,17.89519236]
[1720970112461,2.4361,3198.2,3197.3,5.53044599]
[1720970112667,2.4361,3197.6,3197.3,5.53044599]
[1720970112831,4.32163564,3197.6,3196.9,2.50237]
[1720970113032,1.6905613,3197.5,3196.9,2.50237]
[1720970113333,0.04863566,3197.5,3196.9,2.50237]
[1720970113533,0.04863566,3197.5,3197.0,2.50234]
[1720970113732,0.04863566,3197.5,3196.8,2.50245]
[1720970113969,1.6905613,3197.5,3196.8,2.50245]
[1720970114168,2.17668436,3197.5,3196.9,2.5024]
[1720970114468,1.64192564,3197.4,3196.7,17.86044599]
[1720970114671,1.64192564,3197.3,3196.7,17.86044599]
[1720970114855,1.90823392,3197.3,3196.7,17.86044599]
[1720970115172,2.4361,3197.2,3196.7,17.86044599]
[1720970115671,0.04825954,3197.1,3196.7,17.86044599]
[1720970117183,0.04825954,3197.1,3196.1,2.50304]
[1720970117539,0.04825954,3197.1,3196.2,2.50296]
[1720970117738,0.48250913,3197.1,3196.2,2.50296]
[1720970118150,0.43424959,3197.1,3196.3,2.50287]
[1720970118349,2.4361,3197.2,3196.5,2.50272]
[1720970118771,0.04863501,3197.1,3196.5,2.50272]
[1720970119073,0.04863501,3197.1,3196.6,2.50264]
[1720970119276,0.04863501,3197.1,3196.7,2.50257]
[1720970119976,2.4361,3197.2,3196.7,2.50257]
[1720970120337,0.04858271,3197.1,3196.7,2.50257]
[1720970120974,0.29705098,3197.1,3196.3,2.50287]
[1720970121272,0.24846827,3197.1,3196.3,2.50287]
[1720970121778,2.4361,3197.0,3196.0,5.53044599]
[1720970122141,2.4361,3197.0,3196.0,8.03355599]
[1720970122351,0.04837178,3196.9,3196.0,8.03355599]
[1720970122554,0.04837178,3196.9,3196.0,5.53044599]
[1720970122988,0.04837178,3196.9,3196.0,8.03356599]
[1720970123292,0.29681896,3196.9,3196.0,8.03356599]
[1720970124395,0.29681896,3196.9,3196.0,5.53044599]
[1720970124595,2.4361,3196.8,3196.0,5.53044599]
[1720970125997,0.0475851,3196.7,3196.0,5.53044599]
[1720970127273,0.0475851,3196.7,3195.8,2.50328]
[1720970127863,2.4361,3196.8,3195.8,2.50328]
[1720970128403,0.04651232,3196.7,3195.8,2.50328]
[1720970128698,0.24826123,3196.7,3195.8,2.50328]
[1720970129075,0.24826123,3196.7,3195.9,2.5032]
[1720970129278,2.4361,3196.8,3196.1,2.50303]
[1720970130383,2.4361,3196.8,3195.9,2.50314]
[1720970131963,2.4361,3196.8,3195.6,5.53044599]
[1720970132205,2.58911,3196.7,3195.6,5.53044599]
[1720970135185,0.32775403,3196.6,3195.6,5.53044599]
[1720970136288,0.32775403,3196.6,3195.5,2.5035]
[1720970137684,0.32775403,3196.6,3195.7,2.50335]
[1720970137883,0.32775403,3196.6,3195.8,2.50322]
[1720970138217,0.61944043,3196.6,3195.8,2.50322]
[1720970138911,0.61944043,3196.6,3195.7,2.50333]
[1720970139211,2.3455,3196.5,3195.4,2.50352]
[1720970139919,2.3455,3196.5,3195.3,8.03407599]
[1720970140619,2.3455,3196.5,3195.3,5.53044599]
[1720970140908,2.51944043,3196.6,3195.3,5.53044599]
[1720970140909,2.3455,3196.3,3195.3,5.53044599]
[1720970141310,0.044611,3196.2,3195.3,5.53044599]
[1720970141877,0.044611,3196.2,3195.3,5.50544599]
[1720970142127,2.3455,3196.1,3195.3,5.50544599]
[1720970142274,2.39067269,3196.1,3195.4,2.50356]
[1720970142474,2.3455,3196.1,3195.4,2.50356]
[1720970144413,2.58005,3196.1,3195.3,8.00909599]
[1720970144802,2.58005,3196.1,3195.4,2.50359]
[1720970147483,2.3455,3196.1,3195.4,2.50359]
[1720970147828,2.3455,3196.1,3195.3,5.50544599]
[1720970148120,2.3455,3196.1,3195.3,8.00911599]
[1720970150314,2.3455,3196.1,3195.3,10.51272599]
[1720970150523,2.3455,3196.1,3195.4,2.50359]
[1720970150697,2.61282271,3196.1,3195.4,2.50359]
[1720970152733,2.3455,3196.1,3195.5,2.50351]
[1720970154123,2.3455,3196.1,3195.5,5.00697]
[1720970154508,2.3455,3196.1,3195.6,2.50343]
[1720970154835,1.96105578,3197.3,3195.6,2.50343]
[1720970154836,2.4604,3197.2,3195.8,2.3845]
[1720970154988,0.32774329,3196.6,3196.4,2.50279]
[1720970155205,0.32774329,3196.6,3196.4,5.00551]
[1720970155436,2.4604,3197.2,3196.4,2.50275]
[1720970155701,0.32771899,3197.1,3196.5,2.50272]
[1720970156202,0.32771899,3197.1,3196.6,2.50265]
[1720970156728,0.03921152,3197.0,3196.6,2.50265]
[1720970156906,0.32771899,3197.1,3196.6,2.50265]
[1720970157797,0.03923484,3197.0,3196.8,2.50245]
[1720970158724,2.4604,3197.5,3196.9,2.50236]
[1720970159093,2.4604,3197.5,3197.0,2.50234]
[1720970159427,2.4604,3197.5,3197.2,2.50217]
[1720970159790,2.4604,3197.5,3197.0,2.50234]
[1720970160007,2.78830846,3197.5,3196.7,5.50544599]
[1720970160203,2.78830846,3197.5,3196.8,2.50244]
[1720970160406,0.03808644,3197.4,3196.8,2.50244]
[1720970161031,0.03808644,3197.4,3196.7,5.50544599]
[1720970162133,0.03808644,3197.4,3196.7,8.00801599]
[1720970162318,0.03808644,3197.4,3196.7,9.05908259]
[1720970163040,0.03808644,3197.4,3196.7,3.5536366]
[1720970163333,2.4604,3197.5,3196.7,2.50257]
[1720970163497,0.03803072,3197.3,3196.7,2.50257]
[1720970163695,2.4604,3197.5,3196.7,2.50257]
[1720970163936,0.03797498,3197.2,3196.7,2.50257]
[1720970164132,2.4604,3197.5,3196.7,2.50257]
[1720970164339,0.03791925,3197.1,3196.7,2.50257]
[1720970164499,2.4604,3197.5,3196.7,2.50257]
[1720970164833,0.03786351,3197.0,3196.7,2.50257]
[1720970164999,0.49103333,3197.4,3196.5,2.50268]
[1720970165203,0.49103333,3197.4,3196.6,2.50264]
[1720970165519,0.0380129,3197.3,3196.6,2.50264]